Cogmind - Beta 16.1 @@@ ROGUE MODE // 2026.04.18 @ 17:34:25 Player: Maelyn Result: Destroyed by S-10 Pest with Light Assault Rifle Performance ------------- Evolutions (0) 0 Regions Visited (1) 200 Robots Destroyed (12) 60 Value Destroyed (318) 318 Prototype IDs (0) 0 Alien Tech Used (0) 0 Bonus (0) 0 TOTAL SCORE: 578 Bonus ------- None Cogmind --------- Core Integrity 0/250 Matter 277/300 Energy 89/100 System Corruption 2% Temperature Warm (189) Movement Treading (160) Location -10/Materials Parts ------- > --- POWER (1) -------- (None) > --- PROPULSION (2) --- Improved Treads Improved Treads > --- UTILITY (2) ------ Medium Storage Unit > --- WEAPON (2) ------- Beam Rifle > --- INVENTORY (10) --- Ion Engine Light Nuclear Core Improved Treads Improved Treads Aluminum Leg Aluminum Leg Beam Rifle Grenade Launcher Mace Peak State ------------ > --- POWER ------------ Light Nuclear Core > --- PROPULSION ------- Improved Treads Improved Treads > --- UTILITY ---------- Medium Storage Unit Seismic Detector > --- WEAPON ----------- Beam Rifle Beam Rifle > --- INVENTORY -------- Ion Engine Light Nuclear Core Improved Treads Improved Treads Aluminum Leg Aluminum Leg Beam Rifle Grenade Launcher Mace [Rating: 14] Favorites ----------- Power Light Nuclear Core Engine Ion Engine Power Core Light Nuclear Core Propulsion Light Treads Treads Light Treads Utility Medium Storage Unit Device Seismic Detector Storage Medium Storage Unit Weapon Assault Rifle Energy Gun Medium Laser Ballistic Gun Assault Rifle Launcher Grenade Launcher Build | -11 -10 ------- Run | Yrd Mat Slots Evolved . | . . Power . | . . Propulsion . | . . Utility . | . . Weapon . | . . Parts Attached 15 | 4 11 Power 2 | 1 1 Engine 1 | 1 . Core 1 | . 1 Reactor . | . . Propulsion 4 | 2 2 Treads 4 | 2 2 Leg . | . . Wheel . | . . Hover . | . . Flight . | . . Utility 3 | 1 2 Device 1 | . 1 Storage 2 | 1 1 Processor . | . . Hackware . | . . Protection . | . . Artifact . | . . Weapon 6 | . 6 Energy Gun 4 | . 4 Energy Cannon . | . . Ballistic Gun 1 | . 1 Ballistic Cannon . | . . Launcher 1 | . 1 Special Weapon . | . . Impact Weapon . | . . Slashing Weapon . | . . Piercing Weapon . | . . Special Melee Weapon . | . . Unidentified Prototypes . | . . Parts Lost 3 | . 3 Power 1 | . 1 Propulsion . | . . Utility 1 | . 1 Weapon 1 | . 1 Highest Loss Streak 3 | . 3 To Critical Strikes . | . . Average Backups 6 | 4 6 Power 1 | . 1 Propulsion 2 | 1 2 Utility . | . . Weapon 2 | 1 2 Tool/Special . | . . Unused Backups 9 | 1 8 Power 2 | . 2 Propulsion 5 | 1 4 Utility . | . . Weapon 2 | . 2 Tool/Special . | . . Average Slot Usage (%) 84 | . 84 Engine 6 | . 6 Core 7 | . 7 Treads 28 | . 28 Device 1 | . 1 Storage 14 | . 14 Energy Gun 16 | . 16 Ballistic Gun 9 | . 9 Peak Build Rating 14 | 4 14 Average Rating 7 | 2 8 On Entrance 2 | . 4 Avg Prop Armor Cover (%) . | . . Naked Turns . | . . Heaviest Build 22 | 10 22 Greatest Support 46 | 40 46 Greatest Overweight (x) 1 | 1 . Average Overweight (x) . | . . Largest Inventory Capacity 10 | 8 10 Average Capacity 9 | 7 9 Most Carried 10 | 6 10 Average Carried 6 | 4 6 Final Capacity 10 | 8 10 Final Carried 9 | 6 9 Class Distribution -------------------- 100% | Mutant Dominant Class ---------------- Mutant | -10/Materials Resources | -11 -10 ----------- Run | Yrd Mat Matter Collected 418 | 140 278 Remotely . | . . Salvage Created 479 | . 479 Parts 25 | . 25 Haulers Intercepted 2 | . 2 Recyclers Shooed . | . . Parts Field Recycled . | . . Retrieved Matter . | . . Parts Self-Destructed . | . . Prevented . | . . Parts Restored . | . . Kills | -11 -10 ------- Run | Yrd Mat Combat Hostiles Destroyed 7 | . 7 Guns 6 | . 6 Classes Destroyed 5 | . 5 Builder 1 | . 1 Hauler 2 | . 2 Operator 1 | . 1 Watcher 1 | . 1 Grunt 7 | . 7 Best Kill Streak 4 | . 4 Combat Bots Only 3 | . 3 Max Kills in Single Turn 1 | . 1 Gunslinging . | . . Exploded . | . . Melee . | . . Uniques/NPCs Destroyed . | . . Combat | -11 -10 -------- Run | Yrd Mat Hostile Shots Fired 113 | . 113 Missed 29 | . 29 Hits 84 | . 84 Projectile 84 | . 84 Critical Strikes 2 | . 2 Damage Taken 959 | . 959 Core 254 | . 254 Absorbed by Shields . | . . Core Remaining (%) 100 | 100 . Volleys Fired 49 | . 49 Largest 2 | . 2 Hottest 112 | . 112 Shots Fired 81 | . 81 Gun 81 | . 81 Cannon . | . . Launcher . | . . Special . | . . Kinetic 28 | . 28 Thermal 53 | . 53 Explosive . | . . Electromagnetic . | . . Robot Hit Streak 7 | . 7 Robot Miss Streak 5 | . 5 Penetration Max . | . . Secondary Targets . | . . Shots Hit Robots 51 | . 51 Core Hits 23 | . 23 Critical Kills . | . . Critical Parts Destroyed . | . . Critical Strikes 5 | . 5 Burn 5 | . 5 Melee Attacks . | . . Impact . | . . Slashing . | . . Piercing . | . . Sneak Attacks . | . . Combat Hostiles . | . . Follow-up Attacks . | . . Damage Inflicted 734 | . 734 Guns 733 | . 733 Cannons . | . . Explosions . | . . Melee . | . . Ramming 1 | . 1 Kinetic 261 | . 261 Thermal 472 | . 472 Explosive . | . . Electromagnetic . | . . Impact . | . . Slashing . | . . Piercing . | . . Highest Corruption 2 | . 2 Average Corruption 2 | . 2 Corruption Purged . | . . Corruption Blocked . | . . Effects 7 | . 7 Message Errors 2 | . 2 Matter Fused 4 | . 4 Data Loss (minor) 1 | . 1 Overload Shots . | . . Overflow Damage . | . . Projectiles . | . . Explosions . | . . Melee . | . . Knockbacks . | . . Impact . | . . Kinetic . | . . Secondary . | . . Self-Inflicted Damage . | . . Shots . | . . Rammed 2 | . 2 Targets Rammed 2 | . 2 Kicked . | . . Crushed . | . . Highest Temperature 374 | . 374 Average Temperature 129 | . 129 Received Heat Transfer 438 | . 438 Effects 4 | . 4 Shutdowns 1 | . 1 Interference 2 | . 2 Short Circuit 1 | . 1 Siege Activations . | . . Martial Activations . | . . Shielding Activations . | . . Robots Disrupted . | . . Combat Hostiles . | . . Robots Corrupted . | . . Combat Hostiles . | . . Parts Fried . | . . Impact Corruptions . | . . Robots Melted 1 | . 1 Combat Hostiles 1 | . 1 Parts Melted 2 | . 2 Heat Transferred 1665 | . 1665 Parts Sabotaged . | . . Parts Stolen . | . . Parts Stripped . | . . Power Chain Reactions . | . . Alert | -11 -10 ------- Run | Yrd Mat Maximum Alert Level . | . . Low Security (%) 100 | 100 100 Level 1 . | . . Level 2 . | . . Level 3 . | . . Level 4 . | . . Level 5 . | . . High Security . | . . Max Security . | . . Peak Influence 72 | . 72 Initial . | . . Average 16 | . 17 Influence Increases 262 | . 262 Destroy 0b10 Robot/C 140 | . 140 Destroy 0b10 Robot/NC 25 | . 25 Destroy Leader 36 | . 36 Destroy Structure 1 | . 1 Lose Combat Pursuer 60 | . 60 Influence Decreases 206 | . 206 Time Decay 176 | . 176 Lost Part 30 | . 30 Squads Dispatched . | . . Investigation . | . . Extermination . | . . Reinforcement . | . . Assault . | . . Garrison . | . . Intercept . | . . Searches Triggered . | . . Construction Impeded . | . . Haulers Reinforced . | . . Active Scanning Responses . | . . Cargo Convoy Interrupts . | . . Stealth | -11 -10 --------- Run | Yrd Mat Distress Signals 1 | . 1 Communications Jammed . | . . Distress Signals . | . . Times Spotted 18 | . 18 Peak Tracking Total 5 | . 5 Tactical Retreats 1 | . 1 Traps | -11 -10 ------- Run | Yrd Mat Traps Triggered 1 | . 1 Indirectly . | . . Trap Hack Attempts . | . . Triggered . | . . Disarmed . | . . Reprogrammed . | . . Reused . | . . Traps Extracted . | . . Installed . | . . Triggered . | . . Machines | -11 -10 ---------- Run | Yrd Mat Machines Disabled . | . . Max in Single Turn . | . . Machines Repaired . | . . Machines Dismantled . | . . Machines Sabotaged . | . . Overloaded Fab Kills . | . . Hacking | -11 -10 --------- Run | Yrd Mat Machines Accessed . | . . Terminals . | . . Fabricators . | . . Repair Stations . | . . Recycling Units . | . . Scanalyzers . | . . Garrison Access . | . . Total Hacks . | . . Successful . | . . Failed . | . . Catastrophic . | . . Database Lockouts . | . . Manual . | . . Terminals . | . . Fabricators . | . . Repair Stations . | . . Recycling Units . | . . Scanalyzers . | . . Garrison Access . | . . Terminal Hacks . | . . Fabricator Hacks . | . . Repair Station Hacks . | . . Recycling Unit Hacks . | . . Scanalyzer . | . . Garrison Access Hacks . | . . Unauthorized Hacks . | . . Terminals . | . . Fabricators . | . . Repair Stations . | . . Recycling Units . | . . Scanalyzers . | . . Garrison Access . | . . Data Cores Recovered 1 | . 1 Used . | . . Hacking Detections . | . . Full Trace Events . | . . Feedback Events . | . . Feedback Blocked . | . . Robot Schematics Acquired . | . . Robots Built . | . . Authchips . | . . Time . | . . Total Robot Build Rating . | . . Part Schematics Acquired . | . . Parts Built . | . . Authchips . | . . Time . | . . Total Part Build Rating . | . . Part Studies Acquired . | . . Parts Repaired . | . . Time . | . . Parts Recycled . | . . Recycled Matter . | . . Retrieved Matter . | . . Retrieved Components . | . . Parts Scanalyzed . | . . Part Schematics Acquired . | . . Parts Damaged . | . . Bothacking | -11 -10 ------------ Run | Yrd Mat Used RIF Installer . | . . Robots Hacked . | . . Non-combat . | . . Combat . | . . Robot Hacks Applied . | . . Relay Couplers Released . | . . Fabnet Peak Effective % . | . . Robots Rewired . | . . Allies Hacked . | . . Hacks Repelled . | . . Allies | -11 -10 -------- Run | Yrd Mat Total Allies . | . . Largest Group . | . . Highest-Rated Group . | . . Highest-Rated Ally . | . . Total Orders . | . . Ally Attacks . | . . Total Damage . | . . Kills . | . . Allies Corrupted . | . . Allies Melted . | . . Intel | -11 -10 ------- Run | Yrd Mat Active Infowar (turns) 27 | . 27 Seismic 27 | . 27 Robot Analysis Total . | . . Derelict Logs Recovered . | . . Drone Launches . | . . Drone Recoveries . | . . Exploration | -11 -10 ------------- Run | Yrd Mat Turns Passed 627 | 63 564 Spaces Moved 290 | 36 254 Core 10 | 10 . Treads 280 | 26 254 Legs . | . . Wheels . | . . Hover . | . . Flight . | . . Fastest Speed 50 | 50 160 Average Speed 157 | 140 160 Slowest Speed 160 | 160 160 Overloaded Moves . | . . Propulsion Burnouts . | . . Robots Hopped . | . . Potential Cave-ins . | . . Cave-ins Triggered . | . . Exploration Rate (%) 28 | 3 53 Regions Visited 1 Branch Regions . Pre-discovered Areas . | . . Known Exits Taken . | . . Unknown Exits Taken 1 | 1 . Scrap Searched . | . . Spaces Dug . | . . Terrain Destroyed . | . . Melee . | . . Projectile . | . . AOE . | . . Terrain Rammed . | . . Walls Destroyed . | . . Machines Disabled . | . . Actions | -11 -10 --------- Run | Yrd Mat Total 377 | 47 330 Wait . | . . Move 289 | 35 254 Hop . | . . Pick Up 13 | 7 6 Fast Attach 7 | 4 3 Attach 1 | . 1 Detach 1 | . 1 Swap 7 | . 7 Drop 8 | 1 7 Fire 49 | . 49 Melee . | . . Ram . | . . Kick . | . . Crush 2 | . 2 Escape Stasis . | . . Rewire . | . . Trap . | . . Miscellaneous . | . . Route ------- -11/Scrapyard -10/Materials (discovered 3 exits: [*Mat x2] / [*Sub]) History --------- Turn | Location | Event 17 | -11/Scrapyard | Discovered new exit (range 14) 64 | -11/Scrapyard | Entered Materials 256 | -10/Materials | Discovered new exit (range 10) 300 | -10/Materials | Build established: Mutant 395 | -10/Materials | Discovered new exit (range 11) 591 | -10/Materials | Discovered new exit (range 8) 595 | -10/Materials | Core integrity fell below 50% 618 | -10/Materials | Core integrity fell below 20% 628 | -10/Materials | Destroyed by S-10 Pest with Light Assault Rifle Last Messages --------------- 00578_ G-34 Mercenary overheating. 00579_ G-34 Mercenary heat spikes uncontrollably. 00579_ Melted Sml. Laser. 00579_ G-34 Mercenary overheating. 00580_ K-01 Serf cleans the Electrolysis Chamber. 00580_ G-34 Mercenary overheating. 00583_ G-34 Mercenary heat damages Aluminum Leg. 00583_ G-34 Mercenary critical meltdown. 00591_ EXIT=FOUND 00594_ K-01 Serf cleans the Electrolysis Chamber. 00601_ S-10 Pest suffers critical hit (Burn). 00601_ Seismic Detector destroyed. 00607_ Destroyed Flight Unit. 00613_ Broken Beam Rifle destroyed. 00613_ Slammed into G-47 Trooper. 00619_ Lgt. Nuclear Core destroyed. 00625_ G-47 Trooper suffers critical hit (Burn). 00627_ Imp. Heat Sink melted. 00627_ G-47 Trooper destroyed. 00628_ Acquired 56 matter. Map ----- +----------------------------------------------------+ | ??????????????# #?#T #??????????#####??? | | ??????????????# #?## #?????????????????? | | ??????????????# #??# #?????????????????? | | ??????????????# #??# #######+####??????? | | ??????????????# #### #??????? | | ??????????????# + < #??????? | | ??????????????# #### #??????? | | ??????????????###########??####+######+########### | | ????????????????????????????? ?# # | | ????????????????????????????# # # | | ????????????????????????????#""" # # | | ????????????????????????????#""" # # | | ????????????????????????????#""" [# # | | ?????????????????????######## # # | | ?????????????????????# ####################+# | | ?????????????????????# """#???????????# ### # | | ?????????????????????# """#???????????# # | | ?????????????????????# """###########?# # | | ?????????????????????# ## #?# | | ??????????????????????? ?# !!! [#?## | | ?????????? ###########+#### ! ! #??# | | ?????????? # !!!!= #??# | | ?????????? u %/! =!%! #??#^ | | ?????????? s # """!! #??#^ | | ???????????##+##### ###/#### """! #### | | ??????????????????# # @s ## """ + | | ??????????????????#